bitfinex/quotes_BTCUSD_20250410
["timestamp","ask_amount","ask_price","bid_price","bid_amount"]
[1744304870919,0.58700289,78843.0,78842.0,8e-07]
[1744304871144,0.57431989,78843.0,78842.0,8e-07]
[1744304871357,0.44741231,78843.0,78842.0,8e-07]
[1744304871554,0.42392,78843.0,78842.0,8e-07]
[1744304871782,0.34929958,78843.0,78842.0,8e-07]
[1744304872011,0.606361,78840.0,78839.0,6.08e-05]
[1744304872240,0.91326858,78840.0,78839.0,6.08e-05]
[1744304872485,0.93648697,78840.0,78839.0,6.08e-05]
[1744304872947,0.59648697,78840.0,78839.0,6.08e-05]
[1744304873182,0.266453,78813.0,78812.0,0.0001]
[1744304873406,0.690453,78813.0,78812.0,0.0001]
[1744304873629,0.424,78813.0,78812.0,0.0001]
[1744304873862,0.424,78813.0,78812.0,0.012788]
[1744304874096,0.18,78813.0,78812.0,0.012788]
[1744304874310,0.18,78813.0,78812.0,0.060788]
[1744304874795,0.18012653,78813.0,78812.0,0.18779558]
[1744304875500,0.18012653,78813.0,78812.0,0.18789558]
[1744304875961,0.24408,78835.0,78831.0,0.012685]
[1744304876188,0.41408,78835.0,78834.0,0.266381]
[1744304876420,0.41408,78835.0,78834.0,0.253697]
[1744304876646,0.41408,78835.0,78832.0,0.253701]
[1744304876872,0.41408,78835.0,78834.0,0.253697]
[1744304877088,0.41408,78835.0,78829.0,0.012685]
[1744304877302,0.41408,78835.0,78819.0,0.266432]
[1744304877519,0.41408,78835.0,78828.0,0.266401]
[1744304877928,0.41408,78835.0,78832.0,0.2537]
[1744304878122,0.41408,78835.0,78834.0,0.012684]
[1744304878346,0.41408,78835.0,78833.0,0.253698]
[1744304878347,0.41408,78835.0,78827.0,0.266405]
[1744304878725,0.02309807,78834.0,78827.0,0.012686]
[1744304878949,0.21309807,78834.0,78832.0,0.266387]
[1744304879113,0.21309807,78834.0,78833.0,0.012685]
[1744304879325,0.19,78834.0,78833.0,0.13959258]
[1744304879724,0.19,78834.0,78829.0,0.253712]
[1744304879926,0.19,78834.0,78831.0,0.012685]
[1744304880127,0.19,78834.0,78830.0,0.012685]
[1744304880327,0.19,78834.0,78822.0,0.253733]
[1744304880328,0.19,78834.0,78822.0,0.012686]
[1744304880528,0.266301,78829.0,78815.0,0.012687]
[1744304880728,0.24408,78828.0,78817.0,0.253751]
[1744304881089,0.43408,78828.0,78819.0,0.012687]
[1744304881291,0.43408,78828.0,78818.0,0.253747]
[1744304881492,0.02312206,78827.0,78824.0,0.266412]
[1744304881610,0.18312206,78827.0,78807.0,0.0128569]
[1744304881812,0.18312206,78827.0,78818.0,0.253746]
[1744304881813,0.16,78827.0,78818.0,0.253746]
[1744304882076,0.253723,78826.0,78814.0,0.266448]
[1744304882306,0.253723,78826.0,78816.0,0.253755]
[1744304882307,0.17,78826.0,78816.0,0.253755]
[1744304882534,0.17,78826.0,78817.0,0.253751]
[1744304882762,0.17,78826.0,78818.0,0.253847]
[1744304882996,0.17,78826.0,78818.0,0.0001]
[1744304883433,0.17,78826.0,78818.0,0.0002]
[1744304883905,0.17,78826.0,78818.0,0.253948]
[1744304884026,0.17,78826.0,78818.0,0.0002]
[1744304884226,0.17,78826.0,78825.0,0.012686]
[1744304884816,0.17,78826.0,78824.0,0.15307569]
[1744304885004,0.17,78826.0,78825.0,0.1421307]
[1744304885202,0.253609,78862.0,78850.0,0.253645]
[1744304885405,0.24416,78872.0,78865.0,0.012679]
[1744304885736,0.43416,78872.0,78868.0,0.012679]
[1744304885912,0.43416,78872.0,78871.0,0.253578]
[1744304886210,0.43416,78872.0,78871.0,0.266256]
[1744304886590,0.1901271,78872.0,78871.0,0.266256]
[1744304886995,0.1901271,78872.0,78871.0,0.39316358]
[1744304887185,1e-07,78872.0,78871.0,0.39316358]
[1744304887389,0.002,78889.0,78888.0,0.266199]
[1744304887610,0.092,78889.0,78888.0,0.266199]
[1744304887811,0.092,78889.0,78888.0,0.39352965]
[1744304888801,0.092,78889.0,78888.0,0.00042307]
[1744304889152,0.092,78889.0,78888.0,0.14000665]
[1744304889359,0.092,78889.0,78888.0,0.1425414]
[1744304889586,0.0003362,78893.0,78892.0,0.012675]
[1744304889792,0.0103362,78893.0,78892.0,0.14211686]
[1744304890000,0.0103362,78893.0,78892.0,0.39562786]
[1744304890210,0.0103362,78893.0,78892.0,0.39309358]
[1744304892377,0.0103362,78893.0,78892.0,0.12690758]
[1744304892599,0.0103362,78893.0,78892.0,0.13958258]
[1744304892940,0.0103362,78893.0,78892.0,0.14221733]
[1744304893258,0.0003362,78913.0,78912.0,0.012672]
[1744304893435,0.1503362,78913.0,78912.0,0.266118]
[1744304893848,0.1503362,78913.0,78912.0,0.39302558]
[1744304894660,0.15046323,78913.0,78912.0,0.39302558]
[1744304895548,0.15046323,78913.0,78909.0,0.253454]
[1744304895659,0.15046323,78913.0,78912.0,0.012672]
[1744304895868,0.15046323,78913.0,78912.0,0.266218]
[1744304896469,0.15046323,78913.0,78912.0,0.0001]
[1744304896675,0.15046323,78913.0,78912.0,0.012772]
[1744304897703,0.15046323,78913.0,78912.0,0.0001]
[1744304897903,0.15046323,78913.0,78912.0,0.012772]
[1744304898110,0.15046323,78913.0,78912.0,0.13967958]
[1744304899378,0.15046323,78913.0,78912.0,0.05163345]
[1744304899599,0.15046323,78913.0,78912.0,0.06430545]
[1744304900027,0.15046323,78913.0,78902.0,0.0467]
[1744304900214,0.15046323,78913.0,78912.0,0.253446]
[1744304900484,0.15046323,78913.0,78912.0,0.266118]
[1744304901222,0.15046323,78913.0,78912.0,0.15292775]
[1744304902465,0.15046323,78913.0,78912.0,0.2823696]
[1744304902642,0.15046323,78913.0,78912.0,0.27983533]
[1744304903128,0.15046323,78913.0,78912.0,0.253446]
[1744304903325,0.15046323,78913.0,78912.0,0.266118]
[1744304904073,0.15046323,78913.0,78912.0,0.39302558]
[1744304905903,0.00046323,78913.0,78912.0,0.81062558]
[1744304906510,2.3e-07,78913.0,78912.0,0.81062558]
[1744304910990,0.01000023,78913.0,78912.0,0.266118]
[1744304911185,0.01000023,78913.0,78912.0,0.39302558]
[1744304912611,2.3e-07,78913.0,78912.0,0.39302558]
[1744304913796,2.3e-07,78919.0,78918.0,0.266098]
[1744304914011,2.3e-07,78919.0,78918.0,0.39300558]
[1744304914388,6.3e-07,78921.0,78920.0,0.266092]
[1744304914594,6.3e-07,78921.0,78920.0,0.44639958]
[1744304915008,5.8e-07,78934.0,78933.0,0.266047]
[1744304915192,0.0023362,78949.0,78939.0,0.266028]
[1744304915347,0.010336,78940.0,78939.0,0.39293558]
[1744304915549,0.0023362,78949.0,78944.0,0.266011]
[1744304915755,0.0023362,78949.0,78948.0,0.265997]
[1744304915958,0.0023362,78949.0,78948.0,0.39290458]
[1744304916358,0.00246318,78949.0,78948.0,0.39290458]
[1744304917819,0.01246318,78949.0,78948.0,0.39290458]
[1744304918609,0.01246318,78949.0,78945.0,0.012667]
[1744304918815,0.01246318,78949.0,78948.0,0.012666]
[1744304919369,0.01246318,78949.0,78944.0,0.012667]
[1744304919370,0.01246318,78949.0,78937.0,0.253364]
[1744304919538,0.01246318,78949.0,78933.0,0.012768]
[1744304919805,0.01246318,78949.0,78945.0,0.012667]
[1744304920016,0.01246318,78949.0,78947.0,0.253332]
[1744304920336,0.01246318,78949.0,78948.0,0.012666]
[1744304920939,0.00256407,78965.0,78964.0,0.265942]
[1744304921145,0.19,78965.0,78964.0,0.265942]
[1744304921345,0.19,78965.0,78964.0,0.253279]
[1744304921989,0.19,78965.0,78964.0,0.265942]
[1744304922197,0.012668,78938.0,78925.0,0.4176]
[1744304922424,0.253376,78934.0,78911.0,0.4176]
[1744304922653,0.90295158,78934.0,78933.0,0.00022698]
[1744304923052,0.91265691,78934.0,78933.0,0.00022698]
[1744304923252,0.30661291,78934.0,78933.0,0.00022698]
[1744304923489,0.17,78934.0,78933.0,0.00022698]
[1744304925502,0.56295158,78934.0,78933.0,0.00022698]
[1744304926081,0.012673,78907.0,78894.0,0.4176]
[1744304926283,0.253476,78904.0,78901.0,0.00042307]
[1744304926467,0.453473,78904.0,78901.0,0.00042307]
[1744304926662,0.2,78904.0,78901.0,0.00042307]
[1744304927687,0.01180714,78903.0,78901.0,0.00042307]
[1744304928037,0.17180714,78903.0,78902.0,0.13958058]
[1744304929403,0.16,78903.0,78902.0,0.13958058]
[1744304931711,0.16,78903.0,78902.0,0.55718058]
[1744304931948,0.00957428,78921.0,78920.0,0.266092]
[1744304932147,0.26,78937.0,78926.0,0.253401]
[1744304932381,0.31193105,78936.0,78924.0,0.266076]
[1744304932572,0.31193105,78936.0,78925.0,0.253404]
[1744304932823,0.31193105,78936.0,78924.0,0.266076]
[1744304933227,0.13193105,78933.0,78924.0,0.266076]
[1744304933360,0.31193105,78933.0,78926.0,0.253401]
[1744304933560,0.31193105,78933.0,78924.0,0.266076]
[1744304933764,0.31193105,78933.0,78924.0,0.01267]
[1744304933992,0.31193105,78933.0,78926.0,0.253401]
[1744304934201,0.31193105,78933.0,78928.0,0.012669]
[1744304934360,0.31193105,78933.0,78931.0,0.266051]
[1744304934716,0.25834846,78932.0,78919.0,0.012671]
[1744304934971,0.43834846,78932.0,78919.0,0.253421]
[1744304935195,0.69173146,78932.0,78921.0,0.253417]
[1744304935394,0.43834846,78932.0,78923.0,0.25341]
[1744304936275,0.43834846,78932.0,78924.0,0.253407]
[1744304936490,0.43834846,78932.0,78921.0,0.253416]
[1744304936701,0.43834846,78932.0,78922.0,0.253414]
[1744304936913,0.13193105,78928.0,78923.0,0.25341]
[1744304937070,0.31193105,78928.0,78923.0,0.25341]
[1744304937296,0.24372,78927.0,78920.0,0.25342]
[1744304937575,0.42372,78927.0,78922.0,0.253413]
[1744304937723,0.01267,78922.0,78908.0,0.253457]
[1744304937957,0.012671,78917.0,78903.0,0.00042307]
[1744304938159,0.253458,78909.0,78903.0,0.00042307]
[1744304938354,0.18,78909.0,78903.0,0.00042307]
[1744304938570,0.18,78909.0,78908.0,0.266131]
[1744304938793,0.18,78909.0,78908.0,0.39303858]
[1744304942594,0.18,78909.0,78905.0,0.253469]
[1744304942792,0.18,78909.0,78905.0,0.012673]
[1744304942998,0.18,78909.0,78908.0,0.253459]
[1744304943196,0.18,78909.0,78903.0,0.00042307]
[1744304943640,0.18,78909.0,78903.0,0.01309607]
[1744304943866,0.18,78909.0,78904.0,0.253472]
[1744304944070,0.18,78909.0,78903.0,0.01309607]
[1744304944071,0.012673,78907.0,78903.0,0.00042307]
[1744304944267,0.266145,78904.0,78903.0,0.00042307]
[1744304944417,0.56305258,78904.0,78903.0,0.00042307]
[1744304944847,0.266182,78893.0,78863.0,0.01268]
[1744304945063,0.97008958,78893.0,78854.0,0.012681]
[1744304945259,0.97008958,78893.0,78851.0,0.012682]
[1744304945260,0.266223,78881.0,78851.0,0.012682]
[1744304945437,1.13685058,78881.0,78880.0,5e-07]
[1744304945638,0.606236,78877.0,78845.0,0.0001679]
[1744304945819,0.606256,78871.0,78845.0,0.0001679]
[1744304946031,0.98136223,78871.0,78845.0,0.0001679]
[1744304946886,0.98178489,78871.0,78845.0,0.0001679]
[1744304947210,1.00532901,78871.0,78845.0,0.0001679]
[1744304947338,0.266287,78862.0,78845.0,0.0001679]
[1744304947555,0.266341,78846.0,78845.0,0.0001679]
[1744304947754,2.53337135,78846.0,78845.0,0.0001679]
[1744304948301,0.266381,78834.0,78833.0,0.0001679]
[1744304948473,0.6068327,78834.0,78833.0,0.0001679]
[1744304948861,0.61863135,78834.0,78833.0,0.0001679]
[1744304949046,0.61905375,78834.0,78833.0,0.0001679]
[1744304949449,0.62853848,78834.0,78833.0,0.0001679]
[1744304951616,0.36215748,78834.0,78833.0,0.0001679]
[1744304951829,0.4788899,78834.0,78831.0,0.002]
[1744304952030,0.012685,78832.0,78831.0,0.002]
[1744304952237,0.56329658,78832.0,78831.0,0.002]
[1744304952709,0.59863935,78832.0,78831.0,0.002]
[1744304953938,0.266395,78830.0,78823.0,0.0001679]
[1744304954147,0.266406,78827.0,78826.0,8e-07]
[1744304954340,0.2538,78802.0,78801.0,0.002]
[1744304954503,0.4238,78802.0,78801.0,0.002]
[1744304955161,0.43649,78802.0,78801.0,0.0021675]
[1744304955571,0.43691213,78802.0,78801.0,0.0021675]
[1744304955994,0.57669501,78802.0,78801.0,0.0021675]
[1744304956167,0.266554,78783.0,78782.0,0.0001679]
[1744304956491,0.436554,78783.0,78782.0,0.0001679]
[1744304957025,0.17,78783.0,78782.0,0.0001679]
[1744304957177,0.17,78783.0,78782.0,0.18896848]
[1744304957345,0.17,78783.0,78782.0,0.0001679]
[1744304959045,0.55076858,78783.0,78782.0,0.0001679]
[1744304959248,0.56346158,78783.0,78782.0,0.0001679]
[1744304959461,1.01527565,78783.0,78782.0,0.0001679]
[1744304959675,0.606591,78772.0,78771.0,0.002]
[1744304959841,2.46365858,78772.0,78771.0,0.002]
[1744304960248,2.4985653,78772.0,78771.0,0.002]
[1744304960570,2.2319743,78772.0,78771.0,0.002]
[1744304960908,2.4985653,78772.0,78771.0,0.002]
[1744304961116,2.49898717,78772.0,78771.0,0.002]
[1744304961541,2.5306259,78772.0,78771.0,0.002]
[1744304961975,0.266619,78764.0,78752.0,8e-05]
[1744304962178,0.57680837,78764.0,78752.0,8e-05]
[1744304963105,0.8323133,78764.0,78752.0,8e-05]
[1744304963893,1.29908895,78764.0,78752.0,8e-05]
[1744304964099,1.1723133,78764.0,78752.0,8e-05]
[1744304964291,1.18203261,78764.0,78752.0,8e-05]
[1744304964494,1.18203261,78764.0,78763.0,0.5001]
[1744304965488,0.34,78752.0,78750.0,7e-07]
[1744304965677,0.606693,78742.0,78710.0,0.4176]
[1744304965876,0.266764,78721.0,78710.0,0.4176]
[1744304966097,0.690684,78721.0,78703.0,0.0001682]
[1744304966354,1.15759158,78721.0,78703.0,0.0001682]
[1744304966686,1.17053975,78721.0,78703.0,0.0001682]
[1744304966889,1.19184548,78721.0,78703.0,0.0001682]
[1744304967264,1.31862113,78721.0,78703.0,0.0001682]
[1744304967398,1.21545011,78721.0,78703.0,0.0001682]
[1744304967746,1.21545011,78721.0,78720.0,0.0002]
[1744304968074,0.77406734,78721.0,78720.0,0.0002]
[1744304968200,0.53014734,78721.0,78720.0,0.0002]
[1744304968403,0.78685034,78721.0,78720.0,0.0002]
[1744304968610,0.43414734,78721.0,78720.0,0.0002]
[1744304968811,0.43414734,78721.0,78720.0,0.266968]
[1744304969009,0.42442136,78721.0,78720.0,0.266968]
[1744304969243,0.42442136,78721.0,78720.0,0.0002]
[1744304970043,0.42442136,78721.0,78720.0,0.0003]
[1744304971562,0.42442136,78721.0,78713.0,0.254086]
[1744304971774,0.42442136,78721.0,78714.0,0.254082]
[1744304971969,0.42442136,78721.0,78720.0,0.012703]
[1744304972538,0.42442136,78721.0,78720.0,0.12690758]
[1744304972777,0.18042136,78721.0,78720.0,0.60501058]
[1744304974039,0.24404,78741.0,78738.0,0.254005]
[1744304974252,0.37404,78741.0,78739.0,0.12690758]
[1744304974670,0.37404,78741.0,78739.0,0.39360958]
[1744304974872,0.13,78741.0,78740.0,0.4303]
[1744304975072,0.13,78741.0,78740.0,0.55720758]
[1744304975278,0.13,78741.0,78740.0,0.54450758]
[1744304975500,0.012701,78731.0,78720.0,0.00022703]
[1744304975652,0.24404,78730.0,78728.0,0.254037]
[1744304975815,0.24404,78730.0,78729.0,0.13960858]
[1744304975816,0.40404,78730.0,78729.0,0.13960858]
[1744304976015,0.16,78730.0,78729.0,0.13960858]
[1744304976378,0.16,78730.0,78729.0,0.55720858]
[1744304977168,0.25393,78762.0,78729.0,0.55720858]
[1744304977169,0.012693,78778.0,78764.0,0.012696]
[1744304977364,1.48768,78768.0,78767.0,0.253913]
[1744304977573,1.48768,78768.0,78765.0,0.253918]
[1744304977746,0.18,78768.0,78767.0,0.13960258]
[1744304978358,0.18,78768.0,78767.0,0.13972961]
[1744304978554,0.18,78768.0,78767.0,0.55732961]
[1744304978980,0.002,78799.0,78795.0,0.25382]
[1744304979141,0.172,78799.0,78793.0,0.253826]
[1744304979344,0.172,78799.0,78792.0,0.25383]
[1744304979545,0.172,78799.0,78798.0,0.266503]
[1744304980164,0.172,78799.0,78798.0,0.253813]
[1744304980386,0.172,78799.0,78798.0,0.26663003]
[1744304980944,0.253736,78823.0,78798.0,0.26663003]
[1744304980945,0.26,78815.0,78798.0,0.38084761]
[1744304981262,0.4191,78856.0,78798.0,0.38084761]
[1744304981263,0.09,78831.0,78828.0,0.266401]
[1744304981438,0.162,78829.0,78828.0,0.17822142]
[1744304982873,0.16242187,78829.0,78816.0,0.012687]
[1744304983011,0.16242187,78829.0,78818.0,0.012687]
[1744304983358,0.16242187,78829.0,78827.0,0.253718]
[1744304984161,0.16242187,78829.0,78821.0,0.253738]
[1744304984481,0.16242187,78829.0,78818.0,0.253747]
[1744304984681,0.16242187,78829.0,78827.0,0.0001]
[1744304984889,0.253716,78828.0,78827.0,0.0001]
[1744304985024,0.426401,78828.0,78827.0,0.0001]
[1744304985639,0.426401,78828.0,78798.0,0.0001]
[1744304985640,0.2665,78799.0,78798.0,0.0001]
[1744304985847,2.53668758,78799.0,78798.0,0.0001]
[1744304986408,0.253907,78769.0,78767.0,0.0001]
[1744304986527,0.49763,78768.0,78767.0,0.0001]
[1744304986732,0.66763,78768.0,78767.0,0.0001]
[1744304986929,0.17,78768.0,78767.0,0.13970258]
[1744304987183,0.17,78768.0,78767.0,0.12713461]
[1744304987379,0.17,78768.0,78767.0,0.00022703]
[1744304987549,0.17,78768.0,78767.0,0.01292203]
[1744304988165,0.17,78768.0,78767.0,0.00022703]
[1744304988541,0.17,78768.0,78767.0,0.13982961]
[1744304988996,0.17,78768.0,78767.0,0.00022703]
[1744304989739,0.17,78768.0,78767.0,0.13982961]
[1744304990392,0.17,78768.0,78767.0,0.13992961]
[1744304990597,0.17,78768.0,78767.0,0.00032703]
[1744304990770,0.42391,78768.0,78767.0,0.00032703]
[1744304990994,0.17,78768.0,78767.0,0.00032703]
[1744304991493,0.182695,78768.0,78767.0,0.00032703]
[1744304991841,0.17,78768.0,78767.0,0.00032703]
[1744304992199,1.47696,78768.0,78767.0,0.00032703]
[1744304993723,1.47696,78768.0,78767.0,0.13992961]
[1744304994975,1.47696,78768.0,78767.0,0.12723461]
[1744304995162,1.47696,78768.0,78767.0,0.13992961]
[1744304997005,1.15481761,78768.0,78767.0,0.13992961]
[1744304997232,1.22481761,78768.0,78767.0,0.13992961]
[1744304997529,0.07,78768.0,78767.0,0.55752961]
[1744304998269,0.25679744,78807.0,78801.0,0.253803]
[1744304998470,1.49708,78803.0,78800.0,0.253803]
[1744304998621,1.49708,78803.0,78801.0,0.253802]
[1744304999206,1.49708,78803.0,78802.0,0.2538]
[1744304999609,1.49750187,78803.0,78802.0,0.2538]
[1744304999817,1.74126187,78803.0,78802.0,0.2538]
[1744305000220,1.74126187,78803.0,78789.0,0.012692]
[1744305000419,0.73366885,78800.0,78786.0,0.012692]
[1744305000622,0.91366885,78800.0,78795.0,0.253821]
[1744305000831,0.91366885,78800.0,78790.0,0.253836]
[1744305001030,0.18,78800.0,78799.0,0.25381]
[1744305001632,0.18,78800.0,78774.0,0.012694]
[1744305001833,0.253818,78797.0,78786.0,0.253849]
[1744305002040,0.18,78797.0,78775.0,0.12690758]
[1744305002284,0.73366885,78790.0,78767.0,0.0002]
[1744305002458,0.012692,78785.0,78767.0,0.0002]
[1744305002667,0.74636185,78780.0,78767.0,0.0002]
[1744305002849,0.24372,78779.0,78767.0,0.0002]
[1744305003047,0.42372,78779.0,78767.0,0.0002]
[1744305003252,0.012693,78778.0,78767.0,0.0002]
[1744305003450,0.17,78778.0,78767.0,0.0002]
[1744305003672,0.17,78778.0,78768.0,0.12690758]
[1744305004074,0.42388,78778.0,78768.0,0.12690758]
[1744305004248,0.182693,78778.0,78768.0,0.12703461]
[1744305004481,0.253906,78769.0,78768.0,0.00012703]
[1744305004704,0.56079474,78769.0,78768.0,3e-08]
[1744305004897,0.266693,78742.0,78723.0,0.4176]
[1744305005097,0.786693,78742.0,78741.0,0.0021271]
[1744305005258,0.266713,78736.0,78735.0,9e-07]
[1744305005461,0.493013,78736.0,78735.0,9e-07]
[1744305005731,0.493013,78736.0,78735.0,0.00012743]
[1744305006013,0.50476688,78736.0,78735.0,0.00012743]
[1744305006231,0.46775393,78736.0,78735.0,0.00012743]
[1744305006558,0.45846688,78736.0,78735.0,0.00012743]
[1744305006758,0.434013,78736.0,78735.0,0.00012743]
[1744305007384,0.446713,78736.0,78735.0,0.00012743]
[1744305007958,0.18,78736.0,78735.0,0.00012743]
[1744305008663,0.18,78736.0,78735.0,0.01282743]
[1744305008836,0.18,78736.0,78735.0,0.55733501]
[1744305010026,0.18,78736.0,78735.0,0.54463501]
[1744305010245,0.1927,78736.0,78735.0,0.00012743]
[1744305010879,0.32909503,78736.0,78735.0,0.00012743]
[1744305011082,1.63649503,78736.0,78735.0,0.00012743]
[1744305011889,1.648235,78736.0,78735.0,0.00012743]
[1744305012128,1.988235,78736.0,78735.0,0.00012743]
[1744305012494,0.266736,78729.0,78725.0,0.84526903]
[1744305012698,1.15728358,78729.0,78725.0,0.84526903]
[1744305012880,1.16902355,78729.0,78728.0,1e-06]
[1744305013459,1.19249117,78729.0,78728.0,1e-06]
[1744305014215,0.606764,78721.0,78720.0,0.0001]
[1744305014424,0.92367158,78721.0,78720.0,0.0001]
[1744305014962,1.05044723,78721.0,78720.0,0.0001]
[1744305015141,0.266818,78705.0,78697.0,0.0001]
[1744305015285,1.978098,78705.0,78697.0,0.0001]
[1744305015481,2.10500558,78705.0,78697.0,0.0001]
[1744305015684,0.352705,78704.0,78703.0,4e-07]
[1744305015914,0.66961258,78704.0,78703.0,4e-07]
[1744305016119,0.606842,78698.0,78689.0,0.0001677]
[1744305016337,0.266869,78690.0,78689.0,0.0001677]
[1744305016568,0.47032613,78690.0,78689.0,0.0001677]
[1744305017015,0.48205499,78690.0,78689.0,0.0001677]
[1744305017485,0.22789399,78690.0,78689.0,0.0001677]
[1744305018429,0.35480157,78690.0,78689.0,0.0001677]
[1744305018658,0.35480157,78690.0,78689.0,0.0002677]
[1744305019541,0.254249,78664.0,78656.0,0.0001677]
[1744305019754,0.012712,78662.0,78656.0,0.0001677]
[1744305020005,0.172712,78662.0,78656.0,0.0001677]
[1744305020905,0.17283821,78662.0,78657.0,0.0001678]
[1744305021118,0.16012621,78662.0,78657.0,0.0001678]
[1744305021491,0.17283821,78662.0,78657.0,0.0001678]
[1744305022194,0.17283821,78662.0,78661.0,0.0002]
[1744305022393,0.16012621,78662.0,78661.0,0.0002]
[1744305022775,0.40396621,78662.0,78661.0,0.267167]
[1744305022972,0.40396621,78662.0,78661.0,0.0002]
[1744305023961,0.16012621,78662.0,78661.0,0.0002]
[1744305024166,0.40396621,78662.0,78661.0,0.0002]
[1744305025927,0.40396621,78662.0,78661.0,0.0003]
[1744305026136,0.40396621,78662.0,78661.0,0.013012]
[1744305026785,0.40396621,78662.0,78661.0,0.01555441]
[1744305026993,0.40396621,78662.0,78661.0,0.0003]
[1744305027554,0.40396621,78662.0,78657.0,0.0001678]
[1744305027555,1.22553441,78662.0,78657.0,0.0001678]
[1744305027690,0.607001,78651.0,78650.0,1e-06]
[1744305027892,0.267019,78646.0,78645.0,1e-06]
[1744305028090,0.58392658,78646.0,78645.0,1e-06]
[1744305028336,0.19,78646.0,78645.0,1e-06]
[1744305028541,0.267031,78643.0,78636.0,0.0069925]
[1744305028737,0.19,78643.0,78642.0,0.254317]
[1744305028912,0.19,78643.0,78642.0,0.267032]
[1744305029248,0.19,78643.0,78636.0,0.13390008]
[1744305029398,0.012715,78642.0,78636.0,0.0069925]
[1744305029592,0.19,78642.0,78638.0,0.012716]
[1744305029802,0.012716,78639.0,78636.0,0.0069925]
[1744305030169,0.012716,78637.0,78636.0,0.0069925]
[1744305030310,0.437049,78637.0,78636.0,0.0069925]
[1744305031338,0.44453416,78637.0,78636.0,0.0069925]
[1744305031538,0.43717514,78637.0,78636.0,0.0069925]
[1744305031737,1.1360116,78637.0,78636.0,0.0069925]
[1744305032168,1.15935056,78637.0,78636.0,0.0069925]
[1744305032395,1.39161733,78637.0,78636.0,0.0069925]
[1744305032598,1.02092168,78637.0,78636.0,0.0069925]
[1744305032732,1.21864168,78637.0,78636.0,0.0069925]
[1744305032925,0.97472168,78637.0,78636.0,0.0069925]
[1744305033168,1.21864168,78637.0,78636.0,0.0069925]
[1744305033370,0.87864168,78637.0,78636.0,0.0069925]
[1744305033574,0.72839514,78637.0,78636.0,0.0069925]
[1744305033791,0.48447514,78637.0,78636.0,0.0069925]
[1744305034005,0.72839514,78637.0,78636.0,0.0069925]
[1744305034176,0.41404614,78637.0,78636.0,0.0069925]
[1744305034403,0.41408614,78637.0,78636.0,0.0069925]
[1744305034825,0.41408614,78637.0,78636.0,0.0197085]
[1744305035203,0.17012614,78637.0,78636.0,0.0197085]
[1744305036036,0.17012614,78637.0,78636.0,0.2613285]
[1744305036237,0.17012614,78637.0,78636.0,0.2740445]
[1744305036990,0.18284214,78637.0,78636.0,0.0069925]
[1744305037177,0.17012614,78637.0,78636.0,0.0197085]
[1744305037344,0.17012614,78637.0,78636.0,0.14661608]
[1744305038463,0.17012614,78637.0,78636.0,0.0069925]
[1744305038880,0.18284214,78637.0,78636.0,0.0069925]
[1744305039488,0.17012614,78637.0,78636.0,0.0069925]
[1744305040719,0.17012614,78637.0,78636.0,0.2740445]
[1744305040998,0.17012614,78637.0,78636.0,0.40095208]
[1744305041961,0.17012614,78637.0,78636.0,0.2613285]
[1744305042165,0.17012614,78637.0,78636.0,0.0069925]
[1744305043417,0.17012614,78637.0,78636.0,0.0197085]
[1744305043816,0.18284214,78637.0,78636.0,0.0069925]
[1744305047026,0.43717514,78637.0,78636.0,0.0069925]
[1744305047243,0.17012614,78637.0,78636.0,0.0069925]
[1744305047442,0.42445914,78637.0,78636.0,0.0069925]
[1744305047956,0.17012614,78637.0,78636.0,0.2740445]
[1744305048125,0.17012614,78637.0,78636.0,0.2613285]
[1744305048318,0.43717514,78637.0,78636.0,0.0069925]
[1744305050410,0.17012614,78637.0,78636.0,0.2740445]
[1744305050724,0.18284214,78637.0,78636.0,0.0069925]
[1744305050939,0.17012614,78637.0,78636.0,0.0069925]
[1744305051397,0.17012614,78637.0,78636.0,0.14661608]
[1744305051629,0.17012614,78637.0,78636.0,0.14671608]
[1744305052571,0.17012614,78637.0,78636.0,0.19331608]
[1744305053019,0.17012614,78637.0,78636.0,0.14671608]
[1744305055799,1.4e-07,78637.0,78636.0,0.14671608]
[1744305056026,0.01000014,78637.0,78636.0,0.14925875]
[1744305056228,1.4e-07,78637.0,78636.0,0.15435868]
[1744305056435,1.55308,78666.0,78661.0,0.254254]
[1744305056633,1.713207,78666.0,78662.0,0.254252]
[1744305056814,1.713207,78666.0,78661.0,0.254253]
[1744305057013,1.713207,78666.0,78662.0,0.254249]
[1744305057252,1.713207,78666.0,78663.0,0.254248]
[1744305057435,1.967448,78666.0,78662.0,0.254251]
[1744305057628,1.723648,78666.0,78662.0,0.254251]
[1744305057855,0.2438,78665.0,78663.0,0.254249]
[1744305058012,0.2438,78665.0,78658.0,0.266976]
[1744305058013,0.4338,78665.0,78662.0,0.254252]
[1744305058214,0.4338,78665.0,78663.0,0.254248]
[1744305058412,0.4338,78665.0,78662.0,0.254252]
[1744305058630,0.012712,78664.0,78659.0,0.25426]
[1744305058831,0.20156749,78664.0,78659.0,0.25426]
[1744305059085,0.19,78664.0,78661.0,0.254254]
[1744305059398,0.19,78664.0,78663.0,0.254249]
[1744305059603,0.19,78664.0,78662.0,0.254251]
[1744305059604,0.19,78664.0,78662.0,0.12690758]
[1744305059805,0.19,78664.0,78663.0,0.254249]
[1744305060252,0.19,78664.0,78662.0,0.254251]
[1744305060400,0.19,78664.0,78663.0,0.254249]
[1744305060766,0.19,78664.0,78663.0,0.266961]
[1744305061178,0.19,78664.0,78663.0,0.39386858]
[1744305061403,0.19,78664.0,78663.0,0.81146858]
[1744305061602,2e-07,78669.0,78668.0,0.266943]
[1744305061828,0.0003352,78692.0,78691.0,0.266865]
[1744305062025,1.4e-07,78693.0,78692.0,0.012707]
[1744305062261,0.11568464,78713.0,78712.0,0.012704]
[1744305062461,0.30568464,78713.0,78712.0,0.39624227]
[1744305062610,0.30568464,78713.0,78712.0,0.39370158]
[1744305063117,0.19,78713.0,78712.0,0.38099758]
[1744305063357,0.19012703,78713.0,78712.0,0.12690758]
[1744305063563,0.19012703,78713.0,78712.0,0.13961158]